Workbook

Sheet Разходи
B1: Бюджет за събитие за [Име на събитие] | H1: РАЗХОДИ
B3: ОБЩИ РАЗХОДИ. | G3: Очаквани | H3: Действителни
G4: =SUM(C11,C19,C25,C32,G11,G19,G24) -> 882.00 лв. | H4: =SUM(D11,D19,D25,D32,H11,H19,H24) -> 333.00 лв.
B6: Място | C6: Очаквани | D6: Действителни | F6: Почерпка | G6: Очаквани | H6: Действителни
B7: Такси за стая/зала | C7: 500.00 лв. | F7: Храна
B8: Персонал на мястото | F8: Напитки | G8: 20.00 лв.
B9: Оборудване | F9: Покривки | H9: 20.00 лв.
B10: Маси и столове | F10: Персонал и бакшиш
B11: Общо | C11: =SUBTOTAL(109,Таблица1[Очаквани]) -> 500.00 лв. | D11: =SUBTOTAL(109,Таблица1[Действителни]) -> 0.00 лв. | F11: Общо | G11: =SUBTOTAL(109,Таблица3[Очаквани]) -> 20.00 лв. | H11: =SUBTOTAL(109,Таблица3[Действителни]) -> 20.00 лв.
B13: Украса | C13: Очаквани | D13: Действителни | F13: Програма | G13: Очаквани | H13: Действителни
B14: Цветя | C14: 200.00 лв. | D14: 300.00 лв. | F14: Изпълнители
B15: Свещи | F15: Лектори | G15: 30.00 лв.
B16: Осветление | F16: Пътувания
B17: Балони | F17: Хотел
B18: Хартиени консумативи | F18: Други
B19: Общо | C19: =SUBTOTAL(109,Таблица4[Очаквани]) -> 200.00 лв. | D19: =SUBTOTAL(109,Таблица4[Действителни]) -> 300.00 лв. | F19: Общо | G19: =SUBTOTAL(109,Таблица5[Очаквани]) -> 30.00 лв. | H19: =SUBTOTAL(109,Таблица5[Действителни]) -> 0.00 лв.
B21: Реклама | C21: Очаквани | D21: Действителни | F21: Награди | G21: Очаквани | H21: Действителни
B22: Графични материали | F22: Ленти/почетни значки/трофеи
B23: Копирни услуги/печат | C23: 20.00 лв. | F23: Подаръци | G23: 100.00 лв.
B24: Пощенски разходи | F24: Общо | G24: =SUBTOTAL(109,Таблица7[Очаквани]) -> 100.00 лв. | H24: =SUBTOTAL(109,Таблица7[Действителни]) -> 0.00 лв.
B25: Общо | C25: =SUBTOTAL(109,Таблица6[Очаквани]) -> 20.00 лв. | D25: =SUBTOTAL(109,Таблица6[Действителни]) -> 0.00 лв.
B27: Разни | C27: Очаквани | D27: Действителни
B28: Телефон | D28: 13.00 лв.
B29: Транспорт | C29: 12.00 лв.
B30: Канцеларски материали
B31: Факс услуги
B32: Общо | C32: =SUBTOTAL(109,Таблица8[Очаквани]) -> 12.00 лв. | D32: =SUBTOTAL(109,Таблица8[Действителни]) -> 13.00 лв.

Sheet Приходи
B1: Бюджет за събитие за [Име на събитие] | G1: ПРИХОДИ
B3: ОБЩИ ПРИХОДИ | F3: Очаквани | G3: Действителни
F4: =SUM(F11, F18, F25, F33) -> 1,936.00 лв. | G4: =SUM(G11,G18,G25, G33) -> 1,831.00 лв.
B6: ТАКСИ ЗА ВХОД
B7: Очакван № | C7: Действителен № | D7: Тип | E7: Цена | F7: Очаквани приходи | G7: Действителни приходи
B8: 300 | C8: 278 | D8: Възрастни @ | E8: 5.00 лв. | F8: =B8*E8 -> 1,500.00 лв. | G8: =C8*E8 -> 1,390.00 лв.
B9: 197 | C9: 195 | D9: Деца @ | E9: 2.00 лв. | F9: =B9*E9 -> 394.00 лв. | G9: =C9*E9 -> 390.00 лв.
B10: 42 | C10: 51 | D10: Други @ | E10: 1.00 лв. | F10: =B10*E10 -> 42.00 лв. | G10: =C10*E10 -> 51.00 лв.
B11: Общо | F11: =SUBTOTAL(109,Таблица9[Очаквани приходи]) -> 1,936.00 лв. | G11: =SUBTOTAL(109,Таблица9[Действителни приходи]) -> 1,831.00 лв.
B13: РЕКЛАМИ В ПРОГРАМАТА
B14: Очакван № | C14: Действителен № | D14: Тип | E14: Цена | F14: Очаквани приходи | G14: Действителни приходи
B15: 12 | D15: Титулни страници @ | F15: =B15*E15 -> 0.00 лв. | G15: =C15*E15 -> 0.00 лв.
C16: 158 | D16: Половин страници @ | F16: =B16*E16 -> 0.00 лв. | G16: =C16*E16 -> 0.00 лв.
B17: 4 | D17: Четвърт страници @ | F17: =B17*E17 -> 0.00 лв. | G17: =C17*E17 -> 0.00 лв.
B18: Общо | F18: =SUBTOTAL(109,Таблица10[Очаквани приходи]) -> 0.00 лв. | G18: =SUBTOTAL(109,Таблица10[Действителни приходи]) -> 0.00 лв.
B20: УЧАСТНИЦИ В ИЗЛОЖБАТА/ДОСТАВЧИЦИ
B21: Очакван № | C21: Действителен № | D21: Тип | E21: Цена | F21: Очаквани приходи | G21: Действителни приходи
B22: 23 | D22: Големи щандове @ | F22: =B22*E22 -> 0.00 лв. | G22: =C22*E22 -> 0.00 лв.
B23: 354 | D23: Средни щандове @ | F23: =B23*E23 -> 0.00 лв. | G23: =C23*E23 -> 0.00 лв.
B24: 56 | D24: Малки щандове @ | F24: =B24*E24 -> 0.00 лв. | G24: =C24*E24 -> 0.00 лв.
B25: Общо | F25: =SUBTOTAL(109,Таблица11[Очаквани приходи]) -> 0.00 лв. | G25: =SUBTOTAL(109,Таблица11[Действителни приходи]) -> 0.00 лв.
B27: РАЗПРОДАЖБА НА АРТИКУЛИ
B28: Очакван № | C28: Действителен № | D28: Тип | E28: Цена | F28: Очаквани приходи | G28: Действителни приходи
D29: Артикули @ | F29: =B29*E29 -> 0.00 лв. | G29: =C29*E29 -> 0.00 лв.
B30: 123 | D30: Артикули @ | F30: =B30*E30 -> 0.00 лв. | G30: =C30*E30 -> 0.00 лв.
D31: Артикули @ | F31: =B31*E31 -> 0.00 лв. | G31: =C31*E31 -> 0.00 лв.
B32: 13 | D32: Артикули @ | F32: =B32*E32 -> 0.00 лв. | G32: =C32*E32 -> 0.00 лв.
B33: Общо | F33: =SUBTOTAL(109,Таблица12[Очаквани приходи]) -> 0.00 лв. | G33: =SUBTOTAL(109,Таблица12[Действителни приходи]) -> 0.00 лв.

Sheet Резюме за печалбата и загубата
B1: Бюджет за събитие за [Име на събитие] | G1: РЕЗЮМЕ НА ПЕЧАЛБА
G2: И ЗАГУБА
C5: Очаквани | D5: Действителни
B6: Общо приходи | C6: =Приходи!F4 -> 1,936.00 лв. | D6: =Приходи!G4 -> 1,831.00 лв.
B7: Общо разходи | C7: =Разходи!G4 -> 882.00 лв. | D7: =Разходи!H4 -> 333.00 лв.
B9: Обща печалба (или загуба) | C9: =C6-C7 -> 1,054.00 лв. | D9: =D6-D7 -> 1,498.00 лв.
